bitfinex/quotes_SOLUSD_20241216
["timestamp","ask_amount","ask_price","bid_price","bid_amount"]
[1734384858144,1.5926,217.48,217.44,9.80955504]
[1734384858354,6.0948,217.52,217.45,9.80955504]
[1734384858355,15.90435504,217.52,217.45,9.80955504]
[1734384858663,0.6893792,217.5,217.45,9.80955504]
[1734384859171,0.6893792,217.51,217.45,9.80955504]
[1734384862140,10.49893424,217.51,217.44,9.80955504]
[1734384862561,9.80955504,217.49,217.4,20.0]
[1734384862762,9.80955504,217.49,217.41,33.58643904]
[1734384862763,0.6893792,217.48,217.41,33.58643904]
[1734384863063,9.80955504,217.47,217.4,9.80955504]
[1734384863259,0.6893792,217.46,217.4,9.80955504]
[1734384864437,0.6893792,217.46,217.41,9.80955504]
[1734384864644,0.6893792,217.47,217.41,9.80955504]
[1734384864873,10.49893424,217.47,217.39,9.80955504]
[1734384865058,9.80955504,217.46,217.39,9.80955504]
[1734384865275,9.80955504,217.46,217.33,23.776884]
[1734384865276,10.49893424,217.45,217.33,23.776884]
[1734384865588,9.80955504,217.43,217.36,9.80955504]
[1734384865791,9.80955504,217.4,217.33,9.80955504]
[1734384865993,6.0775,217.43,217.31,5.40307257]
[1734384865994,10.49893424,217.39,217.32,9.80955504]
[1734384867165,10.49893424,217.39,217.33,9.80955504]
[1734384868272,9.80955504,217.38,217.27,0.6899598]
[1734384868472,0.6893792,217.37,217.31,9.80955504]
[1734384869195,0.6893792,217.37,217.32,9.80955504]
[1734384869493,0.6893792,217.38,217.32,9.80955504]
[1734384870671,10.49893424,217.38,217.31,9.80955504]
[1734384873620,10.49893424,217.38,217.3,9.80955504]
[1734384874737,0.6893792,217.38,217.31,9.80955504]
[1734384875318,0.6893792,217.38,217.32,9.80955504]
[1734384875705,0.6893792,217.39,217.32,9.80955504]
[1734384876218,10.49893424,217.39,217.31,9.80955504]
[1734384876391,9.80955504,217.37,217.3,9.80955504]
[1734384876592,0.6893792,217.36,217.3,9.80955504]
[1734384876793,0.6893792,217.36,217.29,9.80955504]
[1734384877819,0.6893792,217.36,217.3,9.80955504]
[1734384878023,0.6893792,217.36,217.32,9.80955504]
[1734384878200,0.6893792,217.37,217.32,9.80955504]
[1734384879906,1.6122,217.38,217.27,23.776884]
[1734384879907,1.6122,217.38,217.35,9.80955504]
[1734384880613,1.6122,217.38,217.34,9.80955504]
[1734384882208,1.6122,217.38,217.33,9.80955504]
[1734384882528,0.6893792,217.39,217.34,9.80955504]
[1734384883213,0.6893792,217.39,217.28,0.8156532]
[1734384883214,0.6893792,217.39,217.29,23.776884]
[1734384883397,0.6893792,217.39,217.33,9.80955504]
[1734384888737,0.6893792,217.4,217.33,9.80955504]
[1734384888916,10.49893424,217.4,217.33,9.80955504]
[1734384890417,0.6893792,217.4,217.32,9.80955504]
[1734384890620,7.6897,217.43,217.34,9.80955504]
[1734384890621,0.6893792,217.42,217.34,9.80955504]
[1734384890812,0.6893792,217.45,217.41,9.80955504]
[1734384891029,0.6893792,217.47,217.36,23.902374]
[1734384891233,0.6893792,217.47,217.36,29.30544657]
[1734384892031,1.6003,217.48,217.45,9.80955504]
[1734384892209,0.6893792,217.51,217.45,9.80955504]
[1734384892911,9.80955504,217.5,217.43,9.80955504]
[1734384893232,0.6893792,217.49,217.43,9.80955504]
[1734384893904,10.49893424,217.49,217.42,9.80955504]
[1734384895749,10.49893424,217.49,217.37,10.73645866]
[1734384895935,10.49893424,217.49,217.41,9.80955504]
[1734384896523,9.80955504,217.48,217.41,9.80955504]
[1734384896746,0.6893792,217.47,217.41,9.80955504]
[1734384897224,9.80955504,217.46,217.37,5.40307257]
[1734384897425,0.6893792,217.45,217.39,9.80955504]
[1734384898129,9.80955504,217.44,217.37,9.80955504]
[1734384898453,0.6893792,217.43,217.36,9.80955504]
[1734384899115,0.6893792,217.43,217.32,5.33338609]
[1734384899116,0.6893792,217.43,217.38,9.80955504]
[1734384899474,1.6384,217.44,217.4,9.80955504]
[1734384900558,0.6893792,217.45,217.4,9.80955504]
[1734384900719,0.6893792,217.45,217.41,9.80955504]
[1734384901045,0.6893792,217.45,217.4,9.80955504]
[1734384901513,0.6893792,217.45,217.39,9.80955504]
[1734384903625,10.49893424,217.45,217.33,23.902374]
[1734384903818,10.49893424,217.45,217.38,9.80955504]
[1734384905143,10.49893424,217.45,217.33,23.776884]
[1734384905144,9.80955504,217.44,217.33,23.776884]
[1734384905440,0.6893792,217.43,217.36,9.80955504]
[1734384905815,10.49893424,217.43,217.36,9.80955504]
[1734384906830,0.6893792,217.43,217.36,9.80955504]
[1734384908335,10.49893424,217.43,217.32,5.33338609]
[1734384908647,10.49893424,217.43,217.36,9.80955504]
[1734384909226,9.80955504,217.42,217.35,9.80955504]
[1734384909428,0.6893792,217.41,217.35,9.80955504]
[1734384910948,0.6893792,217.41,217.3,23.776884]
[1734384911263,9.80955504,217.44,217.37,9.80955504]
[1734384911436,0.6893792,217.43,217.37,9.80955504]
[1734384912653,10.49893424,217.43,217.36,9.80955504]
[1734384913456,0.6893792,217.43,217.37,9.80955504]
[1734384913749,0.6893792,217.43,217.38,9.80955504]
[1734384914100,0.6893792,217.45,217.41,9.80955504]
[1734384914257,6.7419792,217.46,217.42,9.80955504]
[1734384914430,1.5936,217.49,217.44,9.80955504]
[1734384915126,1.5936,217.49,217.43,9.80955504]
[1734384915127,0.6893792,217.48,217.43,9.80955504]
[1734384915443,2.2829792,217.49,217.43,9.80955504]
[1734384915650,2.2829792,217.49,217.44,9.80955504]
[1734384915862,2.2829792,217.49,217.43,9.80955504]
[1734384916959,2.2829792,217.49,217.42,9.80955504]
[1734384917126,9.80955504,217.47,217.36,20.0]
[1734384917330,10.49893424,217.46,217.39,9.80955504]
[1734384917861,10.49893424,217.46,217.38,9.80955504]
[1734384918651,9.80955504,217.45,217.38,9.80955504]
[1734384918848,0.6893792,217.44,217.38,9.80955504]
[1734384920666,0.6893792,217.44,217.4,9.80955504]
[1734384920837,0.6893792,217.46,217.4,9.80955504]
[1734384921041,10.49893424,217.46,217.4,9.80955504]
[1734384921744,10.49893424,217.46,217.39,9.80955504]
[1734384923865,2.2829792,217.49,217.41,9.80955504]
[1734384924042,12.09253424,217.49,217.42,9.80955504]
[1734384924461,2.2829792,217.49,217.43,9.80955504]
[1734384925766,2.2829792,217.49,217.44,9.80955504]
[1734384925973,1.5936,217.49,217.45,9.80955504]
[1734384926270,1.5936,217.49,217.44,9.80955504]
[1734384926971,1.5936,217.49,217.38,0.12549]
[1734384926972,1.5936,217.49,217.43,9.80955504]
[1734384927269,0.6893792,217.48,217.43,9.80955504]
[1734384928451,2.2829792,217.49,217.43,9.80955504]
[1734384930748,2.2829792,217.49,217.44,9.80955504]
[1734384930947,1.5936,217.49,217.45,9.80955504]
[1734384933072,1.5936,217.49,217.44,9.80955504]
[1734384934170,1.5936,217.49,217.38,23.902374]
[1734384934171,1.5936,217.49,217.43,9.80955504]
[1734384935074,0.6893792,217.48,217.43,9.80955504]
[1734384936377,0.6893792,217.49,217.45,9.80955504]
[1734384936977,0.6893792,217.49,217.44,9.80955504]
[1734384937372,0.6893792,217.5,217.44,9.80955504]
[1734384937759,0.6893792,217.5,217.45,9.80955504]
[1734384938469,0.6893792,217.51,217.45,9.80955504]
[1734384938672,0.6893792,217.51,217.46,33.71192904]
[1734384938879,0.6893792,217.58,217.5,9.80955504]
[1734384939049,2.1904792,217.59,217.53,9.80955504]
[1734384939550,2.1904792,217.59,217.48,0.6894977]
[1734384939551,12.00003424,217.59,217.52,9.80955504]
[1734384940557,2.1904792,217.59,217.53,9.80955504]
[1734384940991,1.5011,217.59,217.53,9.80955504]
[1734384941191,1.5011,217.59,217.54,9.80955504]
[1734384941582,0.6893792,217.6,217.56,9.80955504]
[1734384941779,1.6568,217.64,217.58,9.80955504]
[1734384941957,0.6893792,217.63,217.58,9.80955504]
[1734384942156,1.6568,217.64,217.58,9.80955504]
[1734384942365,1.6568,217.64,217.5,0.68936281]
[1734384942568,9.80955504,217.62,217.55,9.80955504]
[1734384942784,10.49893424,217.61,217.52,20.0]
[1734384943077,10.49893424,217.61,217.53,9.80955504]
[1734384945784,10.49893424,217.61,217.54,9.80955504]
[1734384948373,9.80955504,217.6,217.53,9.80955504]
[1734384948554,0.6893792,217.59,217.53,9.80955504]
[1734384948953,0.6893792,217.59,217.54,9.80955504]
[1734384949384,0.6893792,217.6,217.56,9.80955504]
[1734384950870,0.6893792,217.6,217.54,9.80955504]
[1734384951055,0.6893792,217.61,217.54,9.80955504]
[1734384951252,10.49893424,217.61,217.54,9.80955504]
[1734384953152,10.49893424,217.61,217.53,9.80955504]
[1734384953384,10.49893424,217.61,217.54,9.80955504]
[1734384953757,9.80955504,217.59,217.49,23.776884]
[1734384953981,10.49893424,217.58,217.51,9.80955504]
[1734384954858,0.6893792,217.58,217.52,9.80955504]
[1734384955060,0.6893792,217.58,217.53,9.80955504]
[1734384955355,0.6893792,217.59,217.53,9.80955504]
[1734384955565,9.80955504,217.61,217.54,9.80955504]
[1734384955782,0.6893792,217.6,217.55,9.80955504]
[1734384956895,9.80955504,217.62,217.55,9.80955504]
[1734384956896,0.6893792,217.61,217.55,9.80955504]
[1734384959383,10.49893424,217.61,217.54,9.80955504]
[1734384960183,9.80955504,217.6,217.53,9.80955504]
[1734384962867,0.6893792,217.57,217.5,9.80955504]
[1734384963792,0.6893792,217.57,217.51,9.80955504]
[1734384967095,9.80955504,217.61,217.54,9.80955504]
[1734384967299,0.6893792,217.6,217.54,9.80955504]
[1734384967879,0.6893792,217.6,217.55,9.80955504]
[1734384968194,9.80955504,217.61,217.54,9.80955504]
[1734384968386,0.6893792,217.6,217.54,9.80955504]
[1734384968770,0.6893792,217.6,217.55,9.80955504]
[1734384969372,0.6893792,217.61,217.55,9.80955504]
[1734384970536,0.6893792,217.63,217.59,9.80955504]
[1734384970828,1.6568,217.64,217.61,9.80955504]
[1734384970985,1.6568,217.64,217.6,9.80955504]
[1734384971795,1.6568,217.64,217.59,9.80955504]
[1734384973001,1.6568,217.64,217.6,9.80955504]
[1734384973582,1.6568,217.64,217.59,9.80955504]
[1734384974088,1.6568,217.64,217.58,9.80955504]
[1734384974979,0.6893792,217.63,217.58,9.80955504]
[1734384975317,10.49893424,217.63,217.56,9.80955504]
[1734384975816,0.6893792,217.63,217.57,9.80955504]
[1734384978002,10.49893424,217.63,217.57,9.80955504]
[1734384980903,10.49893424,217.63,217.51,5.7937095]
[1734384980904,9.80955504,217.61,217.52,23.776884]
[1734384981091,9.80955504,217.62,217.52,23.776884]
[1734384981298,12.15573424,217.64,217.57,9.80955504]
[1734384982607,9.80955504,217.63,217.56,9.80955504]
[1734384982810,0.6893792,217.62,217.56,9.80955504]
[1734384982984,0.6893792,217.62,217.57,9.80955504]
[1734384983190,0.6893792,217.63,217.57,9.80955504]
[1734384983392,0.6893792,217.63,217.58,9.80955504]
[1734384985498,0.6893792,217.63,217.52,23.776884]
[1734384985699,0.6893792,217.63,217.58,9.80955504]
[1734384986308,0.6893792,217.63,217.57,9.80955504]
[1734384986793,9.80955504,217.62,217.55,9.80955504]
[1734384986994,0.6893792,217.61,217.55,9.80955504]
[1734384987219,0.6893792,217.61,217.57,9.80955504]
[1734384987411,10.49893424,217.63,217.57,9.80955504]
[1734384987595,10.49893424,217.63,217.56,9.80955504]
[1734384989924,9.80955504,217.62,217.55,9.80955504]
[1734384990100,0.6893792,217.61,217.55,9.80955504]
[1734384991325,0.6893792,217.61,217.56,9.80955504]
[1734384991635,0.6893792,217.62,217.56,9.80955504]
[1734384995406,0.6893792,217.62,217.58,9.80955504]
[1734384995734,0.6893792,217.65,217.61,9.80955504]
[1734384995935,0.6893792,217.69,217.64,9.80955504]
[1734384996146,9.80955504,217.65,217.53,5.03795116]
[1734384996314,0.6893792,217.64,217.48,2.22628415]
[1734384996508,0.8148692,217.69,217.49,23.902374]
[1734384996735,9.80955504,217.64,217.57,9.80955504]
[1734384996939,10.49893424,217.63,217.56,9.80955504]
[1734384997241,11.47365504,217.62,217.55,9.80955504]
[1734384997435,0.6893792,217.61,217.56,9.80955504]
[1734384997625,0.6893792,217.61,217.57,9.80955504]
[1734384998107,0.6893792,217.61,217.56,9.80955504]
[1734384999215,0.6893792,217.61,217.55,9.80955504]
[1734385000218,0.6893792,217.61,217.56,9.80955504]
[1734385002045,0.6893792,217.61,217.57,9.80955504]
[1734385003544,1.6641,217.67,217.6,9.80955504]
[1734385003741,9.80955504,217.64,217.52,20.0]
[1734385004043,0.6893792,217.63,217.57,9.80955504]
[1734385004343,0.6893792,217.63,217.58,9.80955504]
[1734385004757,0.6893792,217.63,217.57,9.80955504]
[1734385006647,0.6893792,217.63,217.58,9.80955504]
[1734385006820,9.80955504,217.65,217.58,9.80955504]
[1734385007146,0.6893792,217.66,217.52,20.68939178]
[1734385007147,0.6893792,217.64,217.59,9.80955504]
[1734385008054,0.6893792,217.65,217.59,9.80955504]
[1734385008625,10.49893424,217.65,217.58,9.80955504]
[1734385009824,0.6893792,217.65,217.58,9.80955504]
[1734385010026,10.49893424,217.66,217.59,9.80955504]
[1734385010227,9.80955504,217.65,217.59,9.80955504]
[1734385010437,0.6893792,217.64,217.59,9.80955504]
[1734385011656,0.6893792,217.64,217.6,9.80955504]
[1734385011852,0.6893792,217.65,217.6,9.80955504]
[1734385018149,0.6893792,217.65,217.52,20.0]
[1734385018150,10.49893424,217.65,217.55,3.5201271]
[1734385018453,9.80955504,217.63,217.57,9.80955504]
[1734385018641,10.49893424,217.62,217.54,3.5201271]
[1734385018837,10.49893424,217.62,217.52,20.0]
[1734385019055,10.49893424,217.62,217.56,9.80955504]
[1734385026167,0.6893792,217.62,217.57,9.80955504]
[1734385028874,0.6893792,217.62,217.57,8.91090682]
[1734385029994,0.6893792,217.62,217.58,8.91090682]
[1734385030168,0.6893792,217.63,217.58,8.91090682]
[1734385030366,0.6893792,217.63,217.57,8.91090682]
[1734385031778,0.6893792,217.63,217.56,8.91090682]
[1734385031984,8.91090682,217.63,217.56,8.91090682]
[1734385032294,0.6893792,217.62,217.56,8.91090682]
[1734385034003,0.6893792,217.62,217.57,8.91090682]
[1734385034507,0.6893792,217.63,217.58,8.91090682]
[1734385034869,0.6893792,217.63,217.59,8.91090682]
[1734385035072,0.6893792,217.66,217.61,8.91090682]
[1734385036583,0.6893792,217.66,217.6,8.91090682]
[1734385036791,0.6893792,217.66,217.61,8.91090682]
[1734385037591,0.6893792,217.66,217.62,8.91090682]
[1734385037825,2.3534792,217.67,217.62,8.91090682]
[1734385038879,2.3534792,217.67,217.61,8.91090682]
[1734385040081,2.3534792,217.67,217.54,0.68921698]
[1734385040282,8.91090682,217.65,217.58,8.91090682]
[1734385040618,0.6893792,217.64,217.58,8.91090682]
[1734385040988,0.6893792,217.64,217.59,8.91090682]
[1734385041492,9.60028602,217.65,217.58,8.91090682]
[1734385041878,0.6893792,217.65,217.59,8.91090682]
[1734385043601,0.6893792,217.65,217.6,8.91090682]
[1734385043808,0.6893792,217.66,217.6,8.91090682]
[1734385044184,9.60028602,217.66,217.59,8.91090682]
[1734385044379,8.91090682,217.65,217.59,8.91090682]
[1734385044584,0.6893792,217.64,217.59,8.91090682]
[1734385045083,9.60028602,217.66,217.59,8.91090682]
[1734385046835,0.6893792,217.66,217.6,8.91090682]
[1734385047388,0.6893792,217.66,217.53,5.72727312]
[1734385047389,2.3534792,217.67,217.61,8.91090682]
[1734385048893,8.91090682,217.66,217.56,43.776884]
[1734385049094,8.91090682,217.66,217.59,8.91090682]
[1734385049346,2.3534792,217.67,217.6,8.91090682]
[1734385050207,11.26438602,217.67,217.6,8.91090682]
[1734385050812,2.3534792,217.67,217.6,8.91090682]
[1734385051395,11.26438602,217.67,217.56,43.776884]
[1734385051588,11.26438602,217.67,217.59,8.91090682]
[1734385052617,11.26438602,217.67,217.6,8.91090682]
[1734385053542,2.3534792,217.67,217.61,8.91090682]
[1734385053834,2.3534792,217.67,217.6,8.91090682]
[1734385057245,11.26438602,217.67,217.59,8.91090682]
[1734385057419,8.91090682,217.64,217.56,20.0]
[1734385057618,8.91090682,217.64,217.53,5.03795116]
[1734385057619,0.6893792,217.63,217.53,5.03795116]
[1734385057816,9.60028602,217.63,217.55,8.91090682]
[1734385058435,9.60028602,217.63,217.56,8.91090682]
[1734385058640,0.6893792,217.63,217.56,8.91090682]
[1734385060406,9.60028602,217.63,217.56,8.91090682]
[1734385061534,8.91090682,217.62,217.56,8.91090682]
[1734385061723,0.6893792,217.61,217.56,8.91090682]
[1734385062746,0.6893792,217.62,217.56,8.91090682]
[1734385062912,0.6893792,217.62,217.57,8.91090682]
[1734385064044,9.60028602,217.62,217.56,8.91090682]
[1734385065539,9.60028602,217.62,217.55,8.91090682]
[1734385066449,9.60028602,217.62,217.56,8.91090682]
[1734385067353,0.6893792,217.62,217.57,8.91090682]
[1734385072643,0.6893792,217.62,217.58,8.91090682]
[1734385072869,0.6893792,217.63,217.58,8.91090682]
[1734385073072,0.6893792,217.63,217.57,8.91090682]
[1734385075551,9.60028602,217.63,217.57,8.91090682]
[1734385077757,9.60028602,217.63,217.52,23.776884]
[1734385078073,9.60009327,217.63,217.57,8.91071407]
[1734385078757,9.60009327,217.63,217.52,23.776884]
[1734385078758,8.91071407,217.61,217.54,8.91071407]
[1734385078987,0.6893792,217.6,217.54,8.91071407]
[1734385079451,9.60009327,217.6,217.54,8.91071407]
[1734385080072,9.60009327,217.6,217.54,7.46551407]
[1734385084259,0.6893792,217.6,217.55,8.91071407]
[1734385084463,8.91071407,217.62,217.56,8.91071407]
[1734385084772,0.6893792,217.61,217.56,8.91071407]
[1734385085683,0.6893792,217.61,217.55,8.91071407]
[1734385087868,0.6893792,217.61,217.55,8.91212469]
[1734385088575,0.6893792,217.63,217.58,8.91212469]
[1734385088790,0.6893792,217.63,217.53,0.68942041]
[1734385088791,0.6893792,217.66,217.61,8.91212469]
[1734385089172,1.6641,217.67,217.62,8.91212469]
[1734385091098,0.6893792,217.66,217.61,8.91212469]
[1734385092096,0.6893792,217.66,217.6,8.91212469]
[1734385093798,1.6641,217.67,217.61,8.91212469]
[1734385094584,2.3534792,217.67,217.61,8.91212469]
[1734385094790,1.6641,217.67,217.61,8.91212469]
[1734385095495,2.3534792,217.67,217.61,8.91212469]
[1734385095692,1.6641,217.67,217.61,8.91212469]
[1734385096288,2.3534792,217.67,217.61,8.91212469]
[1734385096481,1.6641,217.67,217.61,8.91212469]
[1734385096671,2.3534792,217.67,217.61,8.91212469]
[1734385097009,2.3534792,217.67,217.62,8.91212469]
[1734385097211,1.78777419,217.75,217.58,3.51942988]
[1734385097212,1.5789,217.72,217.65,8.91212469]
[1734385097493,1.5789,217.72,217.58,39.16792864]
[1734385097494,0.6893792,217.77,217.71,8.91212469]
[1734385103725,8.91212469,217.8,217.73,8.91212469]
[1734385104010,0.6893792,217.82,217.75,8.91212469]
[1734385104332,9.60150389,217.82,217.75,8.91212469]
[1734385106104,9.60150389,217.82,217.74,8.91212469]
[1734385107599,8.91212469,217.81,217.74,8.91212469]
[1734385107792,8.91212469,217.82,217.75,8.91212469]
[1734385107992,0.6893792,217.81,217.75,8.91212469]
[1734385108211,0.6893792,217.81,217.7,0.68874157]
[1734385108212,0.6893792,217.81,217.76,8.91212469]
[1734385108420,8.91212469,217.83,217.76,8.91212469]
[1734385108602,0.6893792,217.82,217.76,8.91212469]
[1734385109111,6.2579,217.86,217.8,8.91212469]
[1734385109513,1.5521,217.87,217.81,8.91212469]
[1734385109826,1.5521,217.87,217.82,8.91212469]
[1734385113723,9.60150389,217.89,217.82,8.91212469]
[1734385113900,9.60150389,217.89,217.83,8.91212469]
[1734385115693,8.91212469,217.89,217.83,8.91212469]
[1734385116734,9.60150389,217.9,217.83,8.91212469]
[1734385117921,9.60150389,217.9,217.82,8.91212469]
[1734385118094,8.91212469,217.89,217.81,8.91212469]
[1734385118293,0.6893792,217.88,217.81,8.91212469]
[1734385118502,9.60150389,217.88,217.81,8.91212469]
[1734385119697,8.91212469,217.86,217.74,20.0]
[1734385119928,8.91212469,217.86,217.79,8.91212469]
[1734385119929,0.6893792,217.85,217.79,8.91212469]
[1734385120715,0.6893792,217.85,217.8,8.91212469]
[1734385121607,0.6893792,217.85,217.79,8.91212469]
[1734385122115,0.12549,217.84,217.78,8.91212469]
[1734385122331,9.03761469,217.84,217.77,8.91212469]
[1734385122527,0.6893792,217.83,217.77,8.91212469]
[1734385123319,0.6893792,217.83,217.78,8.91212469]
[1734385123631,0.8148692,217.84,217.78,8.91212469]
[1734385124007,9.72699389,217.84,217.77,8.91212469]
[1734385125736,0.6893792,217.84,217.79,8.91212469]
[1734385126823,9.60150389,217.84,217.73,23.776884]
[1734385127149,9.60150389,217.84,217.77,8.91212469]
[1734385127947,1.5275,217.85,217.82,8.91212469]
[1734385128640,1.5275,217.85,217.81,8.91212469]
[1734385130739,1.5275,217.85,217.8,8.91212469]
[1734385132318,0.6893792,217.84,217.76,20.0]
[1734385132526,0.6893792,217.84,217.79,8.91212469]
[1734385133749,0.6893792,217.84,217.76,20.0]
[1734385133925,0.6893792,217.84,217.78,8.91212469]
[1734385135757,9.60150389,217.84,217.78,8.91212469]
[1734385138254,8.91212469,217.82,217.76,8.91212469]
[1734385138459,0.6893792,217.81,217.76,8.91212469]
[1734385141549,9.60150389,217.81,217.75,8.91212469]
[1734385141759,9.60150389,217.81,217.76,8.91212469]
[1734385141760,0.6893792,217.81,217.76,8.91212469]
[1734385141932,0.6893792,217.81,217.71,5.1038157]
[1734385142262,9.60150389,217.81,217.75,8.91212469]
[1734385142459,9.60150389,217.81,217.7,0.68875157]
[1734385142643,9.03761469,217.8,217.73,8.91212469]
[1734385142958,9.03761469,217.8,217.67,4.19547111]
[1734385142959,10.53192469,217.78,217.71,8.91212469]
[1734385143134,9.60150389,217.77,217.71,8.91212469]
[1734385143667,0.6893792,217.77,217.71,8.91212469]
[1734385143863,0.6893792,217.77,217.72,8.91212469]
[1734385147461,9.60150389,217.77,217.67,0.68881384]
[1734385147634,9.60150389,217.77,217.7,8.91212469]
[1734385147967,8.91212469,217.76,217.66,5.1038157]
[1734385148128,8.91212469,217.74,217.68,8.91212469]
[1734385148323,0.6893792,217.73,217.63,5.03795116]
[1734385148559,0.6893792,217.73,217.67,8.91212469]
[1734385148861,0.6893792,217.73,217.68,8.91212469]
[1734385149962,0.6893792,217.73,217.69,8.91212469]
[1734385150158,0.6893792,217.74,217.69,8.91212469]
[1734385150531,9.60150389,217.74,217.67,8.91212469]
[1734385151776,0.12549,217.73,217.67,8.91212469]
[1734385151952,8.91212469,217.71,217.64,8.91212469]
[1734385152157,0.6893792,217.7,217.59,0.689085]
[1734385152470,9.60150389,217.7,217.64,8.91212469]
[1734385152671,0.6893792,217.7,217.64,8.91212469]
[1734385153038,9.60150389,217.7,217.59,0.689085]
[1734385153241,9.60150389,217.7,217.64,8.91212469]
[1734385154267,9.60150389,217.7,217.63,8.91212469]
[1734385154466,0.12549,217.69,217.63,8.91212469]
[1734385154675,9.03761469,217.69,217.63,8.91212469]
[1734385154879,0.6893792,217.68,217.63,8.91212469]
[1734385155768,0.8148692,217.69,217.63,8.91212469]
[1734385160374,9.72699389,217.69,217.57,5.72711611]
[1734385160573,9.72699389,217.69,217.62,8.91212469]
[1734385160781,8.91212469,217.67,217.61,8.91212469]
[1734385160946,0.6893792,217.66,217.61,8.91212469]
[1734385162872,8.91212469,217.65,217.58,8.91212469]
[1734385163054,0.6893792,217.64,217.58,8.91212469]
[1734385163382,9.60150389,217.64,217.57,8.91212469]
[1734385163559,0.6893792,217.64,217.58,8.91212469]
[1734385164070,9.60150389,217.67,217.6,8.91212469]
[1734385164275,20.0,217.64,217.6,8.91212469]
[1734385165267,9.60150389,217.66,217.59,8.91212469]
[1734385166281,9.03761469,217.65,217.58,8.91212469]
[1734385166483,9.03761469,217.63,217.57,8.91212469]
[1734385166655,0.6893792,217.62,217.57,8.91212469]
[1734385166859,0.6893792,217.62,217.56,8.91212469]
[1734385167064,0.6893792,217.62,217.58,8.91212469]
[1734385167678,0.6893792,217.63,217.58,8.91212469]
[1734385168483,0.6893792,217.63,217.57,8.91212469]
[1734385168687,8.91212469,217.62,217.55,8.91212469]
[1734385168865,0.6893792,217.61,217.55,8.91212469]
[1734385169789,9.60150389,217.61,217.54,8.91212469]
[1734385170156,0.6893792,217.61,217.56,8.91212469]
[1734385170357,0.6893792,217.62,217.56,8.91212469]
[1734385170565,0.6893792,217.63,217.58,8.91212469]
[1734385171572,0.6893792,217.63,217.57,8.91212469]
[1734385171958,9.60150389,217.63,217.56,8.91212469]
[1734385173892,9.60150389,217.63,217.57,8.91212469]
[1734385174897,8.91212469,217.62,217.55,8.91212469]
[1734385175207,8.91212469,217.56,217.45,1.83211467]
[1734385175369,1.6295,217.57,217.42,0.68942507]
[1734385175370,8.91212469,217.53,217.42,0.68942507]
[1734385175703,8.91212469,217.54,217.47,8.91212469]
[1734385175871,0.6893792,217.53,217.47,8.91212469]
[1734385176387,0.6893792,217.53,217.4,4.19140575]
[1734385176388,8.91212469,217.52,217.4,0.68964164]
[1734385176691,8.91212469,217.54,217.47,8.91212469]
[1734385176915,9.60150389,217.53,217.46,8.91212469]
[1734385177987,8.91212469,217.52,217.45,8.91212469]
[1734385178300,0.6893792,217.51,217.45,8.91212469]
[1734385179102,0.6893792,217.52,217.45,8.91212469]
[1734385180190,0.6893792,217.52,217.4,24.46660034]
[1734385180191,9.60150389,217.55,217.48,8.91212469]
[1734385181696,15.29602469,217.6,217.53,8.91212469]
[1734385181915,6.3839,217.6,217.54,8.91212469]
[1734385182689,8.91212469,217.61,217.54,8.91212469]
[1734385182935,6.3217,217.65,217.59,8.91212469]
[1734385183409,7.0110792,217.65,217.59,8.91212469]
[1734385183615,15.92320389,217.65,217.59,8.91212469]
[1734385184513,15.92320389,217.65,217.58,8.91212469]
[1734385184700,7.0110792,217.65,217.58,8.91212469]
[1734385184899,15.23382469,217.65,217.58,8.91212469]
[1734385185792,0.6893792,217.64,217.58,8.91212469]
[1734385187129,9.60150389,217.64,217.57,8.91212469]
[1734385187825,0.6893792,217.64,217.58,8.91212469]
[1734385190818,8.91212469,217.63,217.52,20.0]
[1734385191141,9.60150389,217.64,217.57,8.91212469]
[1734385193338,0.6893792,217.64,217.58,8.91212469]
[1734385198151,1.6234,217.67,217.62,8.91212469]
[1734385198317,6.4437,217.7,217.64,8.91212469]
[1734385198524,6.4437,217.7,217.58,35.64849876]
[1734385198525,6.4437,217.7,217.66,8.91212469]
[1734385198837,1.5226,217.72,217.66,8.91212469]
[1734385199038,2.2119792,217.72,217.66,8.91212469]
[1734385199335,11.12410389,217.72,217.65,8.91212469]
[1734385199542,8.91212469,217.71,217.64,8.91212469]
[1734385199912,11.12410389,217.72,217.65,8.91212469]
[1734385206215,8.91212469,217.71,217.64,8.91212469]
[1734385206415,0.6893792,217.7,217.64,8.91212469]
[1734385206713,8.91212469,217.71,217.64,8.91212469]
[1734385208222,0.6893792,217.7,217.64,8.91212469]
[1734385209139,9.60150389,217.7,217.63,8.91212469]
[1734385209946,8.91212469,217.68,217.61,8.91212469]
[1734385210129,0.6893792,217.67,217.61,8.91212469]
[1734385210331,9.60150389,217.67,217.6,8.91212469]
[1734385210524,8.91212469,217.66,217.59,8.91212469]
[1734385210723,0.6893792,217.65,217.59,8.91212469]
[1734385211625,8.91212469,217.64,217.58,8.91212469]
[1734385211822,0.6893792,217.63,217.57,8.91212469]
[1734385212343,0.6893792,217.63,217.58,8.91212469]
[1734385213119,8.91212469,217.65,217.58,8.91212469]
[1734385213319,0.6893792,217.64,217.58,8.91212469]